[Event "Late-Titled-Tuesday-Blitz-February-20-2024"]
[Site "Chess.com"]
[Date "2024.02.20"]
[Round "1"]
[White "JaackCamel"]
[Black "MaestroCheck"]
[Result "0-1"]
[WhiteElo "2172"]
[BlackElo "2551"]
[TimeControl "180+1"]
[EndTime "14:06:58 PST"]
[Termination "MaestroCheck won by resignation"]

1. d4 {[%clk 0:03:00.9]} 1... d5 {[%clk 0:02:58.3]} 2. c4 {[%clk 0:03:00.4]}
2... c6 {[%clk 0:02:57.7]} 3. cxd5 {[%clk 0:02:59.9]} 3... cxd5 {[%clk
0:02:58.6]} 4. Bf4 {[%clk 0:02:59.2]} 4... Nc6 {[%clk 0:02:57.5]} 5. e3 {[%clk
0:02:58.9]} 5... Nf6 {[%clk 0:02:57.6]} 6. Nc3 {[%clk 0:02:58.1]} 6... a6 {[%clk
0:02:57.7]} 7. Bd3 {[%clk 0:02:57]} 7... Bg4 {[%clk 0:02:57.3]} 8. Nge2 {[%clk
0:02:52.9]} 8... e6 {[%clk 0:02:48.5]} 9. O-O {[%clk 0:02:51.9]} 9... Be7 {[%clk
0:02:46.1]} 10. h3 {[%clk 0:02:51.6]} 10... Bh5 {[%clk 0:02:45.3]} 11. Rc1
{[%clk 0:02:48.6]} 11... O-O {[%clk 0:02:44.1]} 12. Na4 {[%clk 0:02:44.6]} 12...
Nd7 {[%clk 0:02:31]} 13. a3 {[%clk 0:02:41.3]} 13... e5 {[%clk 0:02:10.3]} 14.
dxe5 {[%clk 0:02:35.6]} 14... Ndxe5 {[%clk 0:02:09.8]} 15. Nc5 {[%clk 0:02:11]}
15... Qb6 {[%clk 0:01:45.4]} 16. b4 {[%clk 0:02:04.2]} 16... Rad8 {[%clk
0:01:33.8]} 17. Qb3 {[%clk 0:01:54.5]} 17... Rfe8 {[%clk 0:01:26.1]} 18. Ng3
{[%clk 0:01:45.3]} 18... Nxd3 {[%clk 0:01:22.4]} 19. Qxd3 {[%clk 0:01:40]} 19...
Bg6 {[%clk 0:01:22.5]} 20. Qb3 {[%clk 0:01:27.8]} 20... d4 {[%clk 0:01:19.6]}
21. exd4 {[%clk 0:01:27.3]} 21... Nxd4 {[%clk 0:01:18.6]} 22. Qc4 {[%clk
0:01:17.5]} 22... Rc8 {[%clk 0:01:13.9]} 23. Qxd4 {[%clk 0:01:15.5]} 23... Bf6
{[%clk 0:01:11.4]} 24. Qd6 {[%clk 0:01:04.8]} 24... Rc6 {[%clk 0:01:06.6]} 25.
Qd5 {[%clk 0:00:51.7]} 25... Rd8 {[%clk 0:01:05.2]} 26. Qa2 {[%clk 0:00:49.4]}
26... Qb5 {[%clk 0:01:03.9]} 27. Rfd1 {[%clk 0:00:45.6]} 27... Rdc8 {[%clk
0:01:03.6]} 28. Nd7 {[%clk 0:00:38.8]} 28... Rxc1 {[%clk 0:01:00.9]} 29. Nxf6+
{[%clk 0:00:32.4]} 29... gxf6 {[%clk 0:01:01.3]} 30. Bxc1 {[%clk 0:00:27.7]}
30... Rc2 {[%clk 0:00:57.5]} 31. Qb3 {[%clk 0:00:18.4]} 31... Qc6 {[%clk
0:00:54.9]} 32. Be3 {[%clk 0:00:17.5]} 32... Kg7 {[%clk 0:00:55.4]} 33. Qd5
{[%clk 0:00:17.1]} 33... Qc7 {[%clk 0:00:51]} 34. Nf5+ {[%clk 0:00:17]} 34...
Bxf5 {[%clk 0:00:49]} 35. Qxf5 {[%clk 0:00:16.5]} 35... Rc6 {[%clk 0:00:43.5]}
36. g3 {[%clk 0:00:14.9]} 36... b6 {[%clk 0:00:36.3]} 37. h4 {[%clk 0:00:14.8]}
37... Rd6 {[%clk 0:00:31.2]} 38. Rc1 {[%clk 0:00:13.9]} 38... Qd7 {[%clk
0:00:29.2]} 39. Qg4+ {[%clk 0:00:13.2]} 39... Qxg4 {[%clk 0:00:28.7]} 0-1

[Event "Late-Titled-Tuesday-Blitz-February-20-2024"]
[Site "Chess.com"]
[Date "2024.02.20"]
[Round "1"]
[White "Sacbutt"]
[Black "reevecanada"]
[Result "0-1"]
[WhiteElo "2306"]
[BlackElo "2617"]
[TimeControl "180+1"]
[EndTime "14:07:00 PST"]
[Termination "reevecanada won by resignation"]

1. d4 {[%clk 0:03:00.9]} 1... c5 {[%clk 0:03:00.9]} 2. d5 {[%clk 0:03:00.8]}
2... d6 {[%clk 0:02:58.4]} 3. c4 {[%clk 0:03:01]} 3... Nd7 {[%clk 0:02:58.8]} 4.
Nc3 {[%clk 0:03:01.2]} 4... a6 {[%clk 0:02:59.7]} 5. Nf3 {[%clk 0:02:59.6]} 5...
Ngf6 {[%clk 0:02:58.4]} 6. e4 {[%clk 0:02:58.6]} 6... g6 {[%clk 0:02:54.2]} 7.
Qd2 {[%clk 0:02:53.4]} 7... Bg7 {[%clk 0:02:55.1]} 8. Qc2 {[%clk 0:02:51.7]}
8... O-O {[%clk 0:02:54]} 9. h3 {[%clk 0:02:43.4]} 9... Qa5 {[%clk 0:02:52]} 10.
Bd2 {[%clk 0:02:42.2]} 10... Qc7 {[%clk 0:02:45.6]} 11. Bd3 {[%clk 0:02:40.1]}
11... b6 {[%clk 0:02:42.3]} 12. O-O {[%clk 0:02:39.7]} 12... Bb7 {[%clk
0:02:39.4]} 13. Rfe1 {[%clk 0:02:40]} 13... Ne5 {[%clk 0:02:38.8]} 14. Nxe5
{[%clk 0:02:37.9]} 14... dxe5 {[%clk 0:02:39.7]} 15. Rf1 {[%clk 0:02:36.6]}
15... Ne8 {[%clk 0:02:40]} 16. Rad1 {[%clk 0:02:30.2]} 16... Nd6 {[%clk
0:02:40.9]} 17. b3 {[%clk 0:02:26.7]} 17... f5 {[%clk 0:02:31.1]} 18. f4 {[%clk
0:02:22.3]} 18... fxe4 {[%clk 0:02:25.6]} 19. Nxe4 {[%clk 0:02:11.8]} 19... Nxe4
{[%clk 0:02:22.5]} 20. Bxe4 {[%clk 0:02:11.8]} 20... exf4 {[%clk 0:02:23]} 21.
d6 {[%clk 0:01:57.3]} 21... exd6 {[%clk 0:02:21.9]} 22. Bxb7 {[%clk 0:01:55.6]}
22... Qxb7 {[%clk 0:02:22.8]} 23. Bxf4 {[%clk 0:01:54]} 23... Bd4+ {[%clk
0:02:17.3]} 24. Kh1 {[%clk 0:01:51.5]} 24... Rf6 {[%clk 0:02:09.9]} 25. Bg5
{[%clk 0:01:43.7]} 25... Rxf1+ {[%clk 0:02:06.8]} 26. Rxf1 {[%clk 0:01:44.6]}
26... Rf8 {[%clk 0:02:05.9]} 27. Rxf8+ {[%clk 0:01:39.1]} 27... Kxf8 {[%clk
0:02:06.8]} 28. Qe2 {[%clk 0:01:36.8]} 28... Qf7 {[%clk 0:02:04]} 29. h4 {[%clk
0:01:20.4]} 29... Kg7 {[%clk 0:01:45]} 30. h5 {[%clk 0:01:04.4]} 30... gxh5
{[%clk 0:01:44.2]} 31. Be7 {[%clk 0:00:59]} 31... Be5 {[%clk 0:01:43]} 32. Bd8
{[%clk 0:00:55.4]} 32... Qf5 {[%clk 0:01:42]} 33. Kg1 {[%clk 0:00:48.8]} 33...
Kg6 {[%clk 0:01:34.8]} 34. Bxb6 {[%clk 0:00:47.1]} 34... Bg3 {[%clk 0:01:27.7]}
35. Qe8+ {[%clk 0:00:44]} 35... Kh6 {[%clk 0:01:22.7]} 36. Qe3+ {[%clk
0:00:38.1]} 36... Bf4 {[%clk 0:01:22.1]} 37. Qe2 {[%clk 0:00:31.8]} 37... h4
{[%clk 0:01:16.8]} 38. Bd8 {[%clk 0:00:25.1]} 38... h3 {[%clk 0:01:15.7]} 39.
gxh3 {[%clk 0:00:24.1]} 39... Qxh3 {[%clk 0:01:16]} 40. Qg2 {[%clk 0:00:10]}
40... Be3+ {[%clk 0:01:15.1]} 41. Kf1 {[%clk 0:00:10.2]} 41... Qf5+ {[%clk
0:01:14.7]} 42. Ke2 {[%clk 0:00:09.7]} 42... Bg5 {[%clk 0:01:03.1]} 43. Qh2+
{[%clk 0:00:07.5]} 43... Kg7 {[%clk 0:01:02.1]} 44. Qxd6 {[%clk 0:00:07.4]}
44... Qe4+ {[%clk 0:01:00.1]} 45. Kf2 {[%clk 0:00:07.2]} 45... Be3+ {[%clk
0:00:59.8]} 46. Kf1 {[%clk 0:00:05.9]} 46... Qf3+ {[%clk 0:00:59.1]} 47. Ke1
{[%clk 0:00:06.1]} 47... Qf2+ {[%clk 0:00:56.1]} 48. Kd1 {[%clk 0:00:06.4]}
48... Qf1+ {[%clk 0:00:56.5]} 49. Kc2 {[%clk 0:00:05.7]} 49... Qc1+ {[%clk
0:00:54.5]} 0-1

[Event "Late-Titled-Tuesday-Blitz-February-20-2024"]
[Site "Chess.com"]
[Date "2024.02.20"]
[Round "1"]
[White "viniciusrego"]
[Black "CSB7"]
[Result "0-1"]
[WhiteElo "2412"]
[BlackElo "2772"]
[TimeControl "180+1"]
[EndTime "14:07:04 PST"]
[Termination "CSB7 won by resignation"]

1. e4 {[%clk 0:03:00]} 1... e5 {[%clk 0:02:55.3]} 2. Nf3 {[%clk 0:02:58.4]} 2...
Nf6 {[%clk 0:02:54.7]} 3. d3 {[%clk 0:02:55.8]} 3... Nc6 {[%clk 0:02:53.6]} 4.
Be2 {[%clk 0:02:55.2]} 4... d5 {[%clk 0:02:50.8]} 5. Nbd2 {[%clk 0:02:55.1]}
5... Bc5 {[%clk 0:02:48.7]} 6. c3 {[%clk 0:02:55.2]} 6... a5 {[%clk 0:02:48.6]}
7. b3 {[%clk 0:02:53.7]} 7... O-O {[%clk 0:02:47.8]} 8. O-O {[%clk 0:02:53.7]}
8... Re8 {[%clk 0:02:45.2]} 9. a3 {[%clk 0:02:52.9]} 9... d4 {[%clk 0:02:42.3]}
10. cxd4 {[%clk 0:02:19.3]} 10... Nxd4 {[%clk 0:02:40.1]} 11. Nxd4 {[%clk
0:02:12.5]} 11... Bxd4 {[%clk 0:02:36.5]} 12. Rb1 {[%clk 0:02:09.5]} 12... Qe7
{[%clk 0:02:14.6]} 13. Kh1 {[%clk 0:02:04.3]} 13... Nd7 {[%clk 0:02:04.5]} 14.
f4 {[%clk 0:01:57.1]} 14... exf4 {[%clk 0:02:00.9]} 15. Nf3 {[%clk 0:01:54.1]}
15... Be3 {[%clk 0:01:44]} 16. Bb2 {[%clk 0:01:23.1]} 16... Nf8 {[%clk 0:01:35]}
17. Qc2 {[%clk 0:01:10.6]} 17... Ra6 {[%clk 0:01:30.5]} 18. Rbd1 {[%clk
0:00:41.5]} 18... Rc6 {[%clk 0:01:10.9]} 19. Qb1 {[%clk 0:00:41]} 19... Rb6
{[%clk 0:01:11.2]} 20. Bc3 {[%clk 0:00:34]} 20... Qxa3 {[%clk 0:00:58.7]} 21.
Qa1 {[%clk 0:00:34.3]} 21... Qxa1 {[%clk 0:00:56.9]} 22. Rxa1 {[%clk 0:00:35.2]}
22... Rxb3 {[%clk 0:00:55]} 23. Bxa5 {[%clk 0:00:35.9]} 23... c6 {[%clk
0:00:40.6]} 24. Rfb1 {[%clk 0:00:34.7]} 24... Rxb1+ {[%clk 0:00:37.5]} 25. Rxb1
{[%clk 0:00:35.6]} 25... b5 {[%clk 0:00:35.4]} 26. Nd2 {[%clk 0:00:32.3]} 26...
Ne6 {[%clk 0:00:31.6]} 27. Nb3 {[%clk 0:00:32.1]} 27... Nd4 {[%clk 0:00:30.5]}
28. Nxd4 {[%clk 0:00:29.1]} 28... Bxd4 {[%clk 0:00:31.4]} 29. Bd2 {[%clk
0:00:26.7]} 29... Be5 {[%clk 0:00:28.7]} 30. Kg1 {[%clk 0:00:26.2]} 30... Be6
{[%clk 0:00:28.3]} 31. Rc1 {[%clk 0:00:25.4]} 31... Rc8 {[%clk 0:00:28.3]} 32.
Kf2 {[%clk 0:00:25.2]} 32... f6 {[%clk 0:00:27.6]} 33. Kf3 {[%clk 0:00:25.3]}
33... g5 {[%clk 0:00:27.8]} 34. h4 {[%clk 0:00:21.9]} 34... h6 {[%clk 0:00:28]}
35. hxg5 {[%clk 0:00:22]} 35... hxg5 {[%clk 0:00:28.9]} 36. Be1 {[%clk
0:00:20.2]} 36... c5 {[%clk 0:00:28.3]} 37. g3 {[%clk 0:00:19.4]} 37... g4+
{[%clk 0:00:28.1]} 38. Kg2 {[%clk 0:00:19.3]} 38... f3+ {[%clk 0:00:29]} 39.
Bxf3 {[%clk 0:00:19.7]} 39... gxf3+ {[%clk 0:00:29.8]} 40. Kxf3 {[%clk
0:00:20.6]} 40... b4 {[%clk 0:00:29.4]} 0-1

[Event "Late-Titled-Tuesday-Blitz-February-20-2024"]
[Site "Chess.com"]
[Date "2024.02.20"]
[Round "1"]
[White "omulcafea"]
[Black "AlexeiShirov"]
[Result "0-1"]
[WhiteElo "2444"]
[BlackElo "2847"]
[TimeControl "180+1"]
[EndTime "14:07:06 PST"]
[Termination "AlexeiShirov won by resignation"]

1. e4 {[%clk 0:02:59.7]} 1... e5 {[%clk 0:02:59.9]} 2. Nf3 {[%clk 0:02:59.6]}
2... Nc6 {[%clk 0:03:00]} 3. g3 {[%clk 0:02:57.3]} 3... d5 {[%clk 0:02:57.4]} 4.
exd5 {[%clk 0:02:56]} 4... Qxd5 {[%clk 0:02:56.9]} 5. Nc3 {[%clk 0:02:55.8]}
5... Qa5 {[%clk 0:02:55.9]} 6. Bg2 {[%clk 0:02:55.1]} 6... Nf6 {[%clk 0:02:53]}
7. O-O {[%clk 0:02:55]} 7... Bg4 {[%clk 0:02:51.6]} 8. h3 {[%clk 0:02:41.5]}
8... Bh5 {[%clk 0:02:51.3]} 9. Qe2 {[%clk 0:02:23.8]} 9... O-O-O {[%clk
0:02:47.5]} 10. Qc4 {[%clk 0:02:19.2]} 10... Nd4 {[%clk 0:02:38.5]} 11. Nxd4
{[%clk 0:02:10.5]} 11... Rxd4 {[%clk 0:02:35]} 12. Qb5 {[%clk 0:02:03.9]} 12...
Qxb5 {[%clk 0:02:29.8]} 13. Nxb5 {[%clk 0:02:04]} 13... Rb4 {[%clk 0:02:27.1]}
14. Nc3 {[%clk 0:01:56.7]} 14... e4 {[%clk 0:02:20.7]} 15. Re1 {[%clk
0:01:51.7]} 15... Bg6 {[%clk 0:02:17.6]} 16. a3 {[%clk 0:01:44.8]} 16... Rc4
{[%clk 0:02:16.2]} 17. g4 {[%clk 0:01:35.7]} 17... h6 {[%clk 0:02:08.9]} 18. b3
{[%clk 0:01:35.3]} 18... Rd4 {[%clk 0:02:07.1]} 19. Nb5 {[%clk 0:01:31.6]} 19...
Rd5 {[%clk 0:02:05.9]} 20. Nc3 {[%clk 0:01:30.9]} 20... Rd4 {[%clk 0:02:05.2]}
21. Bb2 {[%clk 0:01:28]} 21... Rxd2 {[%clk 0:02:00.4]} 22. Nxe4 {[%clk
0:00:57.9]} 22... Nxe4 {[%clk 0:01:57]} 23. Bxe4 {[%clk 0:00:57]} 23... Bc5
{[%clk 0:01:56.7]} 24. Bxg6 {[%clk 0:00:44.1]} 24... fxg6 {[%clk 0:01:53.8]} 25.
Bxg7 {[%clk 0:00:28.2]} 25... Rg8 {[%clk 0:01:50]} 26. Bxh6 {[%clk 0:00:27.5]}
26... Bxf2+ {[%clk 0:01:49.5]} 27. Kf1 {[%clk 0:00:25.4]} 27... Bxe1 {[%clk
0:01:49.3]} 28. Bxd2 {[%clk 0:00:19.4]} 28... Bxd2 {[%clk 0:01:48.3]} 29. Ke2
{[%clk 0:00:20]} 29... Bc3 {[%clk 0:01:45.1]} 30. Rf1 {[%clk 0:00:20.3]} 30...
Re8+ {[%clk 0:01:41.2]} 31. Kd3 {[%clk 0:00:20]} 31... Be5 {[%clk 0:01:36.7]}
32. Rf7 {[%clk 0:00:18]} 32... Rh8 {[%clk 0:01:34.9]} 33. Rf3 {[%clk 0:00:18.3]}
33... g5 {[%clk 0:01:33.8]} 34. Ke4 {[%clk 0:00:18.2]} 34... Bf4 {[%clk
0:01:33]} 35. c4 {[%clk 0:00:18.5]} 35... c6 {[%clk 0:01:31.8]} 36. Kf5 {[%clk
0:00:17.4]} 36... Kc7 {[%clk 0:01:30.8]} 37. c5 {[%clk 0:00:17.7]} 37... Rf8+
{[%clk 0:01:28.2]} 38. Ke4 {[%clk 0:00:16.3]} 38... Re8+ {[%clk 0:01:27.8]} 39.
Kf5 {[%clk 0:00:16.9]} 39... Re5+ {[%clk 0:01:27.1]} 40. Kg6 {[%clk 0:00:17.4]}
40... Re6+ {[%clk 0:01:09.7]} 41. Kf5 {[%clk 0:00:17.2]} 41... Rh6 {[%clk
0:01:08.6]} 42. b4 {[%clk 0:00:16.1]} 42... b6 {[%clk 0:01:07.3]} 43. cxb6+
{[%clk 0:00:14]} 43... axb6 {[%clk 0:01:06.5]} 44. Rc3 {[%clk 0:00:14.9]} 44...
Rh8 {[%clk 0:01:02.9]} 45. a4 {[%clk 0:00:14.3]} 45... Rf8+ {[%clk 0:01:00.6]}
46. Ke4 {[%clk 0:00:13.8]} 46... Re8+ {[%clk 0:00:59.7]} 47. Kf5 {[%clk
0:00:14.4]} 47... c5 {[%clk 0:00:55.8]} 48. bxc5 {[%clk 0:00:13.1]} 48... Re5+
{[%clk 0:00:55.7]} 49. Kg6 {[%clk 0:00:13.3]} 49... Rxc5 {[%clk 0:00:55.3]} 50.
Rb3 {[%clk 0:00:12]} 50... Rc4 {[%clk 0:00:51.9]} 0-1

[Event "Late-Titled-Tuesday-Blitz-February-20-2024"]
[Site "Chess.com"]
[Date "2024.02.20"]
[Round "1"]
[White "Maxfan2008"]
[Black "boguszp"]
[Result "0-1"]
[WhiteElo "2511"]
[BlackElo "2013"]
[TimeControl "180+1"]
[EndTime "14:07:06 PST"]
[Termination "boguszp won on time"]

1. d4 {[%clk 0:00:07.7]} 1... d5 {[%clk 0:02:58.1]} 2. c4 {[%clk 0:00:08]} 2...
c6 {[%clk 0:02:57.8]} 3. Nc3 {[%clk 0:00:08.5]} 3... Nf6 {[%clk 0:02:57.6]} 4.
e3 {[%clk 0:00:09.1]} 4... e6 {[%clk 0:02:57.1]} 5. Nf3 {[%clk 0:00:09.7]} 5...
Nbd7 {[%clk 0:02:55.4]} 6. Bd3 {[%clk 0:00:10.2]} 6... Bd6 {[%clk 0:02:55.8]} 7.
O-O {[%clk 0:00:10]} 7... O-O {[%clk 0:02:54.5]} 8. e4 {[%clk 0:00:10.5]} 8...
dxe4 {[%clk 0:02:53.7]} 9. Nxe4 {[%clk 0:00:11.4]} 9... Nxe4 {[%clk 0:02:53.7]}
10. Bxe4 {[%clk 0:00:12.3]} 10... f5 {[%clk 0:02:52.9]} 11. Bc2 {[%clk
0:00:12.3]} 11... e5 {[%clk 0:02:52]} 12. Re1 {[%clk 0:00:11.1]} 12... e4 {[%clk
0:02:50.9]} 13. Ng5 {[%clk 0:00:10.4]} 13... Nf6 {[%clk 0:02:44.5]} 14. h4
{[%clk 0:00:06]} 14... h6 {[%clk 0:02:40.3]} 15. Nh3 {[%clk 0:00:06.4]} 15...
Ng4 {[%clk 0:02:36]} 16. g3 {[%clk 0:00:05.9]} 16... Qc7 {[%clk 0:02:15.3]} 17.
Bf4 {[%clk 0:00:05.7]} 17... Bxf4 {[%clk 0:02:13]} 18. Nxf4 {[%clk 0:00:06.6]}
18... Qf7 {[%clk 0:01:54]} 19. d5 {[%clk 0:00:05.7]} 19... c5 {[%clk 0:01:51.2]}
20. b4 {[%clk 0:00:04.4]} 20... b6 {[%clk 0:01:49.7]} 21. bxc5 {[%clk 0:00:04]}
21... bxc5 {[%clk 0:01:49.4]} 22. Ba4 {[%clk 0:00:04.1]} 22... g5 {[%clk
0:01:37.3]} 23. hxg5 {[%clk 0:00:03.5]} 23... hxg5 {[%clk 0:01:36.7]} 24. Ng2
{[%clk 0:00:03.3]} 24... Qh5 {[%clk 0:01:30.5]} 25. Kf1 {[%clk 0:00:03.4]} 25...
Ba6 {[%clk 0:01:24.9]} 26. Ke2 {[%clk 0:00:02.2]} 26... Bxc4+ {[%clk 0:01:24.3]}
27. Kd2 {[%clk 0:00:01.3]} 27... Rad8 {[%clk 0:01:23.7]} 28. Rh1 {[%clk
0:00:01.8]} 28... Rxd5+ {[%clk 0:01:22.7]} 29. Kc3 {[%clk 0:00:02.7]} 29... Rxd1
{[%clk 0:01:21.2]} 30. Rxh5 {[%clk 0:00:03.1]} 30... Rxa1 {[%clk 0:01:20.6]} 31.
Kxc4 {[%clk 0:00:03.4]} 31... Rc1+ {[%clk 0:01:18.9]} 32. Kb5 {[%clk 0:00:03.3]}
32... Nxf2 {[%clk 0:01:15.1]} 33. Rxg5+ {[%clk 0:00:03.4]} 33... Kh7 {[%clk
0:01:14.7]} 34. Nf4 {[%clk 0:00:04.3]} 34... Rb8+ {[%clk 0:01:13.8]} 35. Kc6
{[%clk 0:00:04.2]} 35... Rb6+ {[%clk 0:01:11.2]} 36. Kc7 {[%clk 0:00:04.4]}
36... Nd3 {[%clk 0:01:07.1]} 37. Be8 {[%clk 0:00:04.4]} 37... Nxf4 {[%clk
0:01:05.4]} 38. gxf4 {[%clk 0:00:05.3]} 38... e3 {[%clk 0:01:03]} 39. Kd7 {[%clk
0:00:05.5]} 39... e2 {[%clk 0:01:02.4]} 40. Ke7 {[%clk 0:00:03.8]} 40... e1=Q+
{[%clk 0:01:01.7]} 41. Kf8 {[%clk 0:00:04]} 41... c4 {[%clk 0:00:52.3]} 42. Bf7
{[%clk 0:00:03.6]} 42... Qb4+ {[%clk 0:00:47.8]} 43. Ke8 {[%clk 0:00:03.2]}
43... Rb8+ {[%clk 0:00:47.5]} 44. Kd7 {[%clk 0:00:02.6]} 44... Rd1+ {[%clk
0:00:47.5]} 0-1

[Event "Late-Titled-Tuesday-Blitz-February-20-2024"]
[Site "Chess.com"]
[Date "2024.02.20"]
[Round "1"]
[White "only_strong_moves"]
[Black "AlejandroArias"]
[Result "1-0"]
[WhiteElo "2669"]
[BlackElo "2353"]
[TimeControl "180+1"]
[EndTime "14:07:07 PST"]
[Termination "only_strong_moves won on time"]

1. e4 {[%clk 0:03:00.9]} 1... c5 {[%clk 0:03:00]} 2. Nf3 {[%clk 0:03:01.1]} 2...
g6 {[%clk 0:03:00.1]} 3. d4 {[%clk 0:03:01.5]} 3... cxd4 {[%clk 0:03:01]} 4.
Nxd4 {[%clk 0:03:02.4]} 4... Nc6 {[%clk 0:03:01]} 5. c4 {[%clk 0:03:01.6]} 5...
Nf6 {[%clk 0:03:00.9]} 6. Nc3 {[%clk 0:03:01.5]} 6... d6 {[%clk 0:03:01.1]} 7.
Be2 {[%clk 0:03:01.5]} 7... Nxd4 {[%clk 0:03:01]} 8. Qxd4 {[%clk 0:03:01.4]}
8... Bg7 {[%clk 0:03:01.9]} 9. O-O {[%clk 0:03:01.3]} 9... O-O {[%clk
0:03:02.4]} 10. Qd2 {[%clk 0:03:01.1]} 10... Be6 {[%clk 0:02:59.7]} 11. b3
{[%clk 0:03:00.7]} 11... a6 {[%clk 0:02:37.6]} 12. Bb2 {[%clk 0:02:59]} 12...
Qa5 {[%clk 0:02:26.1]} 13. Rfd1 {[%clk 0:02:55.3]} 13... Rfc8 {[%clk 0:02:24.5]}
14. Bf1 {[%clk 0:02:54.4]} 14... b5 {[%clk 0:02:18.4]} 15. cxb5 {[%clk 0:02:48]}
15... axb5 {[%clk 0:02:19.3]} 16. f3 {[%clk 0:02:35.9]} 16... b4 {[%clk
0:02:15]} 17. Ne2 {[%clk 0:02:32.1]} 17... Nd7 {[%clk 0:01:58.3]} 18. Bxg7
{[%clk 0:02:30.8]} 18... Kxg7 {[%clk 0:01:59.2]} 19. Nd4 {[%clk 0:02:26.6]}
19... Rc5 {[%clk 0:01:40.4]} 20. Qb2 {[%clk 0:02:24.3]} 20... Kg8 {[%clk
0:01:37.2]} 21. Rd2 {[%clk 0:02:01.9]} 21... Nb6 {[%clk 0:01:27.9]} 22. f4
{[%clk 0:01:56]} 22... Bd7 {[%clk 0:01:20.4]} 23. Re1 {[%clk 0:01:52.6]} 23...
Be8 {[%clk 0:01:14.2]} 24. h3 {[%clk 0:01:44.8]} 24... Rac8 {[%clk 0:01:13.1]}
25. Nf3 {[%clk 0:01:39.3]} 25... Nd7 {[%clk 0:01:07.2]} 26. Kh2 {[%clk
0:01:36.5]} 26... Rc3 {[%clk 0:01:04.6]} 27. e5 {[%clk 0:01:30.9]} 27... dxe5
{[%clk 0:00:58.8]} 28. fxe5 {[%clk 0:01:31.8]} 28... Nf8 {[%clk 0:00:59.2]} 29.
Rf2 {[%clk 0:01:29]} 29... R8c5 {[%clk 0:00:52.6]} 30. Qd2 {[%clk 0:01:23.8]}
30... Bc6 {[%clk 0:00:48]} 31. Ng5 {[%clk 0:00:54]} 31... Be8 {[%clk 0:00:35.5]}
32. Nxf7 {[%clk 0:00:46.7]} 32... Bxf7 {[%clk 0:00:31]} 33. Qf4 {[%clk
0:00:47.1]} 33... Qd8 {[%clk 0:00:06.8]} 34. Qxf7+ {[%clk 0:00:46.6]} 34... Kh8
{[%clk 0:00:06.9]} 35. Qxf8+ {[%clk 0:00:47]} 35... Qxf8 {[%clk 0:00:06.2]} 36.
Rxf8+ {[%clk 0:00:47.9]} 36... Kg7 {[%clk 0:00:06.6]} 37. Rf2 {[%clk 0:00:47.9]}
37... Rd5 {[%clk 0:00:03.3]} 38. Bc4 {[%clk 0:00:47.6]} 38... Rd4 {[%clk
0:00:02.1]} 39. Rf7+ {[%clk 0:00:47]} 39... Kh6 {[%clk 0:00:02.1]} 40. Rxe7
{[%clk 0:00:47.3]} 40... Rd2 {[%clk 0:00:02.2]} 41. Re2 {[%clk 0:00:47.1]} 41...
Rcc2 {[%clk 0:00:01.6]} 42. Rxd2 {[%clk 0:00:47.2]} 42... Rxd2 {[%clk
0:00:02.5]} 43. e6 {[%clk 0:00:47.8]} 43... Rxa2 {[%clk 0:00:02.6]} 44. Rf7
{[%clk 0:00:46.8]} 1-0

[Event "Late-Titled-Tuesday-Blitz-February-20-2024"]
[Site "Chess.com"]
[Date "2024.02.20"]
[Round "1"]
[White "Practical-Play"]
[Black "NtcPou"]
[Result "1-0"]
[WhiteElo "2532"]
[BlackElo "2007"]
[TimeControl "180+1"]
[EndTime "14:07:11 PST"]
[Termination "Practical-Play won on time"]

1. e4 {[%clk 0:02:58.5]} 1... c6 {[%clk 0:02:58.6]} 2. c4 {[%clk 0:02:51.9]}
2... d5 {[%clk 0:02:58.5]} 3. cxd5 {[%clk 0:02:49]} 3... cxd5 {[%clk 0:02:58.6]}
4. exd5 {[%clk 0:02:45.7]} 4... Nf6 {[%clk 0:02:59.2]} 5. Nc3 {[%clk 0:02:42.5]}
5... g6 {[%clk 0:02:53.8]} 6. h4 {[%clk 0:02:38.5]} 6... Bg7 {[%clk 0:02:52.8]}
7. Bb5+ {[%clk 0:02:37.5]} 7... Nbd7 {[%clk 0:02:52.5]} 8. d4 {[%clk 0:02:37]}
8... a6 {[%clk 0:02:49.5]} 9. Be2 {[%clk 0:02:14.8]} 9... b5 {[%clk 0:02:47.2]}
10. Bf3 {[%clk 0:02:13.8]} 10... Bb7 {[%clk 0:02:46.6]} 11. h5 {[%clk
0:02:13.5]} 11... gxh5 {[%clk 0:02:21.8]} 12. a3 {[%clk 0:01:54.2]} 12... Nb6
{[%clk 0:02:17.1]} 13. Bxh5 {[%clk 0:01:46.6]} 13... Nbxd5 {[%clk 0:02:03.8]}
14. Nf3 {[%clk 0:01:37.2]} 14... Rc8 {[%clk 0:01:32.6]} 15. Ne5 {[%clk
0:01:25.7]} 15... Nxh5 {[%clk 0:01:23]} 16. Qxh5 {[%clk 0:01:07.9]} 16... Bxe5
{[%clk 0:01:16.6]} 17. Qxe5 {[%clk 0:01:06.8]} 17... Rg8 {[%clk 0:00:44.3]} 18.
Rxh7 {[%clk 0:00:58.6]} 18... Nxc3 {[%clk 0:00:25.1]} 19. bxc3 {[%clk
0:00:59.5]} 19... Rxc3 {[%clk 0:00:14.8]} 20. Bd2 {[%clk 0:00:54.6]} 20... Rc4
{[%clk 0:00:11.4]} 21. Qf5 {[%clk 0:00:41.9]} 21... Rf8 {[%clk 0:00:09.4]} 22.
Bh6 {[%clk 0:00:39]} 22... Qxd4 {[%clk 0:00:08]} 23. Rd1 {[%clk 0:00:31.4]}
23... Qe4+ {[%clk 0:00:08.1]} 24. Qxe4 {[%clk 0:00:31.6]} 24... Bxe4 {[%clk
0:00:08.7]} 25. Rg7 {[%clk 0:00:23.9]} 25... Rh8 {[%clk 0:00:08.6]} 26. Be3
{[%clk 0:00:22.3]} 26... Bxg2 {[%clk 0:00:08.3]} 27. Rxg2 {[%clk 0:00:20.9]}
27... Rh1+ {[%clk 0:00:07.8]} 28. Ke2 {[%clk 0:00:21]} 28... Rc2+ {[%clk
0:00:07.8]} 29. Bd2 {[%clk 0:00:20.2]} 29... Rh8 {[%clk 0:00:02.3]} 30. Ra1
{[%clk 0:00:15.5]} 30... f6 {[%clk 0:00:02.5]} 31. Kd3 {[%clk 0:00:15.7]} 31...
Rb2 {[%clk 0:00:01.8]} 32. a4 {[%clk 0:00:15.8]} 32... Rb3+ {[%clk 0:00:01.4]}
33. Kc2 {[%clk 0:00:15.7]} 33... Rf3 {[%clk 0:00:02]} 34. axb5 {[%clk
0:00:15.6]} 34... axb5 {[%clk 0:00:01.6]} 35. Ra8+ {[%clk 0:00:16.5]} 1-0